[Event "Late-Titled-Tuesday-Blitz-September-26-2023"]
[Site "Chess.com"]
[Date "2023.09.26"]
[Round "9"]
[White "PepeCuenca"]
[Black "ozates"]
[Result "1-0"]
[WhiteElo "2695"]
[BlackElo "2538"]
[TimeControl "180+1"]
[EndTime "15:40:31 PDT"]
[Termination "PepeCuenca won by resignation"]

1. c4 {[%clk 0:03:00.9]} 1... c5 {[%clk 0:02:55.7]} 2. Nf3 {[%clk 0:03:00.9]}
2... Nc6 {[%clk 0:02:55.4]} 3. d4 {[%clk 0:03:01.3]} 3... cxd4 {[%clk
0:02:56.3]} 4. Nxd4 {[%clk 0:03:02]} 4... g6 {[%clk 0:02:54.3]} 5. e4 {[%clk
0:03:02]} 5... Bg7 {[%clk 0:02:54.8]} 6. Be3 {[%clk 0:03:02.2]} 6... d6 {[%clk
0:02:53.5]} 7. Nc3 {[%clk 0:03:01.6]} 7... Nf6 {[%clk 0:02:53.9]} 8. Be2 {[%clk
0:03:01.9]} 8... O-O {[%clk 0:02:54.5]} 9. O-O {[%clk 0:03:02]} 9... Bd7 {[%clk
0:02:50]} 10. h3 {[%clk 0:03:02.2]} 10... Nxd4 {[%clk 0:02:50.5]} 11. Bxd4
{[%clk 0:03:02.2]} 11... Bc6 {[%clk 0:02:51.4]} 12. Qc2 {[%clk 0:03:02.2]} 12...
Nd7 {[%clk 0:02:50.2]} 13. Bxg7 {[%clk 0:03:02]} 13... Kxg7 {[%clk 0:02:50.1]}
14. b4 {[%clk 0:03:02.7]} 14... Nf6 {[%clk 0:02:47.5]} 15. Rad1 {[%clk
0:02:54.8]} 15... Qc8 {[%clk 0:02:38.7]} 16. a3 {[%clk 0:02:50.7]} 16... a6
{[%clk 0:02:38.9]} 17. Qb2 {[%clk 0:02:15.6]} 17... Kg8 {[%clk 0:02:32.4]} 18.
Bd3 {[%clk 0:02:11.5]} 18... Qe6 {[%clk 0:02:17.3]} 19. Rfe1 {[%clk 0:01:30.2]}
19... Rac8 {[%clk 0:02:14.7]} 20. f4 {[%clk 0:01:26.8]} 20... Nh5 {[%clk
0:02:13.6]} 21. Qf2 {[%clk 0:01:20.5]} 21... Qf6 {[%clk 0:02:08.4]} 22. Ne2
{[%clk 0:01:19.3]} 22... Ba4 {[%clk 0:02:09.1]} 23. Rd2 {[%clk 0:01:12.7]} 23...
Bb3 {[%clk 0:02:03.9]} 24. g4 {[%clk 0:01:01.2]} 24... Ng7 {[%clk 0:02:00.7]}
25. g5 {[%clk 0:01:01.2]} 25... Qe6 {[%clk 0:01:59.1]} 26. Nd4 {[%clk 0:01:01]}
26... Qxh3 {[%clk 0:01:53.8]} 27. Nxb3 {[%clk 0:01:00.9]} 27... b5 {[%clk
0:01:54.7]} 28. c5 {[%clk 0:00:59.2]} 28... Nh5 {[%clk 0:01:44.1]} 29. Rf1
{[%clk 0:00:47.1]} 29... dxc5 {[%clk 0:01:26.5]} 30. Nxc5 {[%clk 0:00:47]} 30...
Rfd8 {[%clk 0:01:05.7]} 31. Qf3 {[%clk 0:00:45.4]} 31... Qh4 {[%clk 0:00:56.5]}
32. Rg2 {[%clk 0:00:32.4]} 32... f5 {[%clk 0:00:23.3]} 33. exf5 {[%clk
0:00:30.6]} 33... Rd4 {[%clk 0:00:19.6]} 34. Rg4 {[%clk 0:00:24.7]} 1-0

[Event "Late-Titled-Tuesday-Blitz-September-26-2023"]
[Site "Chess.com"]
[Date "2023.09.26"]
[Round "9"]
[White "Rital44"]
[Black "NotFischer"]
[Result "1-0"]
[WhiteElo "2517"]
[BlackElo "2268"]
[TimeControl "180+1"]
[EndTime "15:40:34 PDT"]
[Termination "Rital44 won by checkmate"]

1. d4 {[%clk 0:03:00.9]} 1... g6 {[%clk 0:02:59.3]} 2. e4 {[%clk 0:03:00.1]}
2... Bg7 {[%clk 0:02:59.6]} 3. Nf3 {[%clk 0:03:00.3]} 3... c6 {[%clk 0:02:59.6]}
4. h3 {[%clk 0:02:59.6]} 4... d5 {[%clk 0:02:59.8]} 5. Nc3 {[%clk 0:03:00.3]}
5... Nf6 {[%clk 0:02:59.4]} 6. e5 {[%clk 0:03:00.1]} 6... Ne4 {[%clk 0:02:58.7]}
7. Bd3 {[%clk 0:02:58.9]} 7... Nxc3 {[%clk 0:02:58.1]} 8. bxc3 {[%clk
0:02:59.1]} 8... O-O {[%clk 0:02:57.8]} 9. O-O {[%clk 0:02:59.4]} 9... c5 {[%clk
0:02:57.1]} 10. dxc5 {[%clk 0:02:55.2]} 10... Nc6 {[%clk 0:02:56.8]} 11. Re1
{[%clk 0:02:55.3]} 11... Qa5 {[%clk 0:02:40.8]} 12. a4 {[%clk 0:02:55.4]} 12...
Qxc5 {[%clk 0:02:31.5]} 13. Ba3 {[%clk 0:02:56]} 13... Qxc3 {[%clk 0:02:30.8]}
14. Bb5 {[%clk 0:02:41.5]} 14... Nxe5 {[%clk 0:01:49.5]} 15. Nd4 {[%clk
0:02:27.5]} 15... Qxd4 {[%clk 0:01:26.8]} 16. Qxd4 {[%clk 0:02:24.2]} 16... Nf3+
{[%clk 0:01:26.8]} 17. gxf3 {[%clk 0:02:25.1]} 17... Bxd4 {[%clk 0:01:27]} 18.
Rad1 {[%clk 0:02:23.6]} 18... Bf6 {[%clk 0:01:24.5]} 19. Bxe7 {[%clk 0:02:17.8]}
19... Bxe7 {[%clk 0:01:18.9]} 20. Rxe7 {[%clk 0:02:18.7]} 20... Rd8 {[%clk
0:00:58.6]} 21. Kg2 {[%clk 0:01:41.1]} 21... Kg7 {[%clk 0:00:56.3]} 22. Rde1
{[%clk 0:01:32.9]} 22... a6 {[%clk 0:00:54.9]} 23. Be8 {[%clk 0:01:30.2]} 23...
Bf5 {[%clk 0:00:31.8]} 24. Bxf7 {[%clk 0:01:25.8]} 24... Kf8 {[%clk 0:00:19.2]}
25. Rxb7 {[%clk 0:01:25.5]} 25... Rd7 {[%clk 0:00:15]} 26. Rxd7 {[%clk
0:01:20.2]} 26... Bxd7 {[%clk 0:00:15.9]} 27. Bxd5 {[%clk 0:01:20.5]} 27... Rc8
{[%clk 0:00:16.1]} 28. c4 {[%clk 0:01:19.3]} 28... Bxa4 {[%clk 0:00:16.3]} 29.
Ra1 {[%clk 0:01:19.3]} 29... Bb3 {[%clk 0:00:14.8]} 30. Kg3 {[%clk 0:01:04.9]}
30... a5 {[%clk 0:00:14.5]} 31. Rxa5 {[%clk 0:01:00.9]} 31... Bxc4 {[%clk
0:00:14.4]} 32. Be4 {[%clk 0:01:00.1]} 32... Kg7 {[%clk 0:00:12.9]} 33. h4
{[%clk 0:00:59.9]} 33... Rc7 {[%clk 0:00:09.2]} 34. Kf4 {[%clk 0:00:58.5]} 34...
Bf7 {[%clk 0:00:07.5]} 35. Ra8 {[%clk 0:00:57.4]} 35... Re7 {[%clk 0:00:06.9]}
36. Kg5 {[%clk 0:00:55.6]} 36... h6+ {[%clk 0:00:07.1]} 37. Kf4 {[%clk
0:00:55.7]} 37... Re6 {[%clk 0:00:07.7]} 38. Ra7 {[%clk 0:00:54.3]} 38... Rf6+
{[%clk 0:00:08.1]} 39. Kg3 {[%clk 0:00:54.5]} 39... g5 {[%clk 0:00:07.4]} 40.
hxg5 {[%clk 0:00:52.9]} 40... hxg5 {[%clk 0:00:07.2]} 41. Kg4 {[%clk 0:00:50.1]}
41... Kh6 {[%clk 0:00:07.1]} 42. Bf5 {[%clk 0:00:46.8]} 42... Be6 {[%clk
0:00:05.9]} 43. Rh7# {[%clk 0:00:44.6]} 1-0

[Event "Late-Titled-Tuesday-Blitz-September-26-2023"]
[Site "Chess.com"]
[Date "2023.09.26"]
[Round "9"]
[White "orestn"]
[Black "TheMagician"]
[Result "0-1"]
[WhiteElo "2405"]
[BlackElo "2276"]
[TimeControl "180+1"]
[EndTime "15:40:47 PDT"]
[Termination "TheMagician won by resignation"]

1. e4 {[%clk 0:03:00.9]} 1... e5 {[%clk 0:02:53.5]} 2. Nf3 {[%clk 0:03:00.6]}
2... Nc6 {[%clk 0:02:53.8]} 3. Bc4 {[%clk 0:03:00.2]} 3... Bc5 {[%clk
0:02:51.8]} 4. d3 {[%clk 0:02:57.5]} 4... d6 {[%clk 0:02:50.3]} 5. O-O {[%clk
0:02:58]} 5... Nf6 {[%clk 0:02:50.2]} 6. Be3 {[%clk 0:02:58.1]} 6... O-O {[%clk
0:02:47]} 7. Bxc5 {[%clk 0:02:57.2]} 7... dxc5 {[%clk 0:02:47.1]} 8. h3 {[%clk
0:02:54.6]} 8... a6 {[%clk 0:02:45.2]} 9. Nbd2 {[%clk 0:02:48.2]} 9... Qd6
{[%clk 0:02:37.8]} 10. Re1 {[%clk 0:02:47]} 10... Be6 {[%clk 0:02:37.1]} 11. Bb3
{[%clk 0:02:43.7]} 11... b5 {[%clk 0:02:34.2]} 12. Bxe6 {[%clk 0:02:39.3]} 12...
Qxe6 {[%clk 0:02:33.4]} 13. a4 {[%clk 0:02:38.9]} 13... Nd7 {[%clk 0:02:26.2]}
14. Nf1 {[%clk 0:02:36.5]} 14... Nb6 {[%clk 0:02:23.9]} 15. axb5 {[%clk
0:02:34.4]} 15... axb5 {[%clk 0:02:23.6]} 16. Ne3 {[%clk 0:02:33.1]} 16... Nd4
{[%clk 0:02:02.2]} 17. Rb1 {[%clk 0:02:14.7]} 17... c6 {[%clk 0:01:52.4]} 18. c3
{[%clk 0:02:14.7]} 18... Nxf3+ {[%clk 0:01:51.4]} 19. Qxf3 {[%clk 0:02:14]}
19... Rad8 {[%clk 0:01:43.3]} 20. Rbd1 {[%clk 0:02:11.4]} 20... Rd7 {[%clk
0:01:36.2]} 21. Re2 {[%clk 0:02:06.1]} 21... Rfd8 {[%clk 0:01:35.5]} 22. Red2
{[%clk 0:02:06.5]} 22... g6 {[%clk 0:01:35.4]} 23. Ng4 {[%clk 0:01:50.9]} 23...
Rd6 {[%clk 0:01:21.9]} 24. Qe3 {[%clk 0:01:46.7]} 24... Nd7 {[%clk 0:01:15.8]}
25. d4 {[%clk 0:01:34.6]} 25... h5 {[%clk 0:01:04]} 26. Nh2 {[%clk 0:01:33.3]}
26... cxd4 {[%clk 0:00:58]} 27. cxd4 {[%clk 0:01:32.6]} 27... Nf6 {[%clk
0:00:55.9]} 28. dxe5 {[%clk 0:01:15.6]} 28... Rxd2 {[%clk 0:00:55.4]} 29. Rxd2
{[%clk 0:01:14.2]} 29... Rxd2 {[%clk 0:00:55.5]} 30. Qxd2 {[%clk 0:01:12.5]}
30... Qxe5 {[%clk 0:00:56.1]} 31. f3 {[%clk 0:01:01.1]} 31... c5 {[%clk
0:00:53.3]} 32. Nf1 {[%clk 0:01:00.7]} 32... b4 {[%clk 0:00:51.4]} 33. Ne3
{[%clk 0:00:58.6]} 33... h4 {[%clk 0:00:50.5]} 34. Kf2 {[%clk 0:00:55.9]} 34...
Nh5 {[%clk 0:00:50.1]} 35. Nd5 {[%clk 0:00:49.4]} 35... Kh7 {[%clk 0:00:45.2]}
36. b3 {[%clk 0:00:43]} 36... f6 {[%clk 0:00:38.2]} 37. f4 {[%clk 0:00:38.9]}
37... Qxe4 {[%clk 0:00:36.7]} 38. f5 {[%clk 0:00:26.7]} 38... gxf5 {[%clk
0:00:33.7]} 39. Ne3 {[%clk 0:00:24.5]} 39... Qf4+ {[%clk 0:00:30.4]} 40. Ke2
{[%clk 0:00:22.8]} 40... Ng3+ {[%clk 0:00:30.6]} 41. Kd1 {[%clk 0:00:22.9]}
41... Ne4 {[%clk 0:00:26.7]} 42. Qe2 {[%clk 0:00:17.7]} 0-1

[Event "Late-Titled-Tuesday-Blitz-September-26-2023"]
[Site "Chess.com"]
[Date "2023.09.26"]
[Round "9"]
[White "Nekoo04"]
[Black "jcmesafischer"]
[Result "1-0"]
[WhiteElo "2317"]
[BlackElo "2316"]
[TimeControl "180+1"]
[EndTime "15:40:49 PDT"]
[Termination "Nekoo04 won on time"]

1. d4 {[%clk 0:02:30.9]} 1... Nf6 {[%clk 0:02:20.7]} 2. c4 {[%clk 0:02:25.6]}
2... e6 {[%clk 0:01:43.6]} 3. Nf3 {[%clk 0:02:19.9]} 3... d5 {[%clk 0:01:41.7]}
4. g3 {[%clk 0:02:19.5]} 4... Be7 {[%clk 0:01:41.5]} 5. Bg2 {[%clk 0:02:19]}
5... O-O {[%clk 0:01:41.5]} 6. O-O {[%clk 0:02:19.6]} 6... dxc4 {[%clk
0:01:40.9]} 7. Qc2 {[%clk 0:02:19.9]} 7... a6 {[%clk 0:01:41]} 8. a4 {[%clk
0:02:19.9]} 8... Bd7 {[%clk 0:01:40.9]} 9. Rd1 {[%clk 0:02:20]} 9... Bc6 {[%clk
0:01:38.4]} 10. Nc3 {[%clk 0:02:20.3]} 10... Nbd7 {[%clk 0:01:38.3]} 11. e4
{[%clk 0:02:19.8]} 11... b6 {[%clk 0:01:14.2]} 12. d5 {[%clk 0:02:18.5]} 12...
exd5 {[%clk 0:01:14.2]} 13. e5 {[%clk 0:02:17.9]} 13... Ne4 {[%clk 0:01:03.3]}
14. Nxd5 {[%clk 0:02:13.5]} 14... Nec5 {[%clk 0:00:58.2]} 15. Nxe7+ {[%clk
0:01:58]} 15... Qxe7 {[%clk 0:00:53.2]} 16. Ng5 {[%clk 0:01:55.1]} 16... g6
{[%clk 0:00:31.6]} 17. Bxc6 {[%clk 0:01:54.1]} 17... Rad8 {[%clk 0:00:31.3]} 18.
Bxd7 {[%clk 0:01:08.7]} 18... Rxd7 {[%clk 0:00:16.1]} 19. Rxd7 {[%clk
0:01:02.3]} 19... Nxd7 {[%clk 0:00:17]} 20. Qxc4 {[%clk 0:00:56.2]} 20... Nxe5
{[%clk 0:00:16.9]} 21. Qh4 {[%clk 0:00:50.4]} 21... h5 {[%clk 0:00:11.4]} 22.
Qe4 {[%clk 0:00:29.8]} 22... f6 {[%clk 0:00:07.4]} 23. Bf4 {[%clk 0:00:16.1]}
23... Re8 {[%clk 0:00:03.8]} 24. Bxe5 {[%clk 0:00:15.8]} 24... fxg5 {[%clk
0:00:03.4]} 25. Qxg6+ {[%clk 0:00:16.1]} 25... Kf8 {[%clk 0:00:02.9]} 26. Bf6
{[%clk 0:00:15.3]} 26... Qf7 {[%clk 0:00:03.2]} 27. Qxg5 {[%clk 0:00:15.6]}
27... Re6 {[%clk 0:00:02.6]} 28. Bc3 {[%clk 0:00:14.5]} 28... Ke8 {[%clk
0:00:01.7]} 29. Rd1 {[%clk 0:00:14.2]} 29... Qf3 {[%clk 0:00:01.3]} 30. Rd8+
{[%clk 0:00:13]} 30... Kf7 {[%clk 0:00:01.7]} 31. Qg8+ {[%clk 0:00:13.7]} 1-0

[Event "Late-Titled-Tuesday-Blitz-September-26-2023"]
[Site "Chess.com"]
[Date "2023.09.26"]
[Round "9"]
[White "vanyakuba"]
[Black "MajorCoast"]
[Result "1/2-1/2"]
[WhiteElo "2384"]
[BlackElo "2282"]
[TimeControl "180+1"]
[EndTime "15:40:57 PDT"]
[Termination "Game drawn by repetition"]

1. c4 {[%clk 0:03:00]} 1... e6 {[%clk 0:02:57.9]} 2. d4 {[%clk 0:02:59]} 2... d5
{[%clk 0:02:58.3]} 3. Nc3 {[%clk 0:02:59]} 3... h6 {[%clk 0:02:58.5]} 4. e4
{[%clk 0:02:57.7]} 4... dxe4 {[%clk 0:02:55.9]} 5. Nxe4 {[%clk 0:02:57.6]} 5...
Bb4+ {[%clk 0:02:56.6]} 6. Nc3 {[%clk 0:02:57.8]} 6... c5 {[%clk 0:02:52.8]} 7.
Be3 {[%clk 0:02:25.1]} 7... cxd4 {[%clk 0:02:44.7]} 8. Qxd4 {[%clk 0:02:22.1]}
8... Qxd4 {[%clk 0:02:35.3]} 9. Bxd4 {[%clk 0:02:23]} 9... Nf6 {[%clk
0:02:35.6]} 10. a3 {[%clk 0:01:51.3]} 10... Be7 {[%clk 0:02:33.5]} 11. Be2
{[%clk 0:01:18.9]} 11... Bd7 {[%clk 0:02:31.3]} 12. O-O-O {[%clk 0:01:18.5]}
12... Bc6 {[%clk 0:02:31]} 13. Nf3 {[%clk 0:01:14.7]} 13... Nbd7 {[%clk
0:02:23.8]} 14. b4 {[%clk 0:01:04.5]} 14... a6 {[%clk 0:02:09.9]} 15. Kb2 {[%clk
0:00:55.1]} 15... O-O {[%clk 0:02:09.4]} 16. h3 {[%clk 0:00:41]} 16... Rac8
{[%clk 0:02:09.2]} 17. c5 {[%clk 0:00:40.4]} 17... Nd5 {[%clk 0:02:03.7]} 18.
Nxd5 {[%clk 0:00:39.3]} 18... Bxd5 {[%clk 0:02:04.6]} 19. Rhg1 {[%clk
0:00:29.3]} 19... Bf6 {[%clk 0:02:02]} 20. Bxf6 {[%clk 0:00:28.7]} 20... Nxf6
{[%clk 0:02:02.9]} 21. Ne5 {[%clk 0:00:26.5]} 21... Ne4 {[%clk 0:01:54.1]} 22.
f3 {[%clk 0:00:22.4]} 22... Ng3 {[%clk 0:01:50.3]} 23. Bc4 {[%clk 0:00:22.4]}
23... Bxc4 {[%clk 0:01:40.7]} 24. Nxc4 {[%clk 0:00:23.3]} 24... Rfd8 {[%clk
0:01:35.7]} 25. Nd6 {[%clk 0:00:23.1]} 25... Rb8 {[%clk 0:01:24.6]} 26. Nc4
{[%clk 0:00:17.4]} 26... Nf5 {[%clk 0:01:14.9]} 27. Kc3 {[%clk 0:00:16.9]} 27...
Kf8 {[%clk 0:01:10.4]} 28. Rge1 {[%clk 0:00:15.4]} 28... Nh4 {[%clk 0:01:01.7]}
29. Rxd8+ {[%clk 0:00:13.7]} 29... Rxd8 {[%clk 0:01:01.2]} 30. Re2 {[%clk
0:00:14]} 30... Ng6 {[%clk 0:01:00.9]} 31. Nd6 {[%clk 0:00:13.2]} 31... Rd7
{[%clk 0:00:56.2]} 32. g3 {[%clk 0:00:12.4]} 32... Ne7 {[%clk 0:00:51.8]} 33.
Kc4 {[%clk 0:00:10.7]} 33... b5+ {[%clk 0:00:43.2]} 34. Kd4 {[%clk 0:00:09.2]}
34... Nc6+ {[%clk 0:00:41.4]} 35. Kc3 {[%clk 0:00:09]} 35... Ke7 {[%clk
0:00:38.1]} 36. Rd2 {[%clk 0:00:08.1]} 36... Rc7 {[%clk 0:00:20.5]} 37. Re2
{[%clk 0:00:07.2]} 37... Rd7 {[%clk 0:00:17.4]} 38. Nf5+ {[%clk 0:00:07.3]}
38... Kf6 {[%clk 0:00:16.4]} 39. Nd6 {[%clk 0:00:07.1]} 39... Ke7 {[%clk
0:00:15.2]} 1/2-1/2

[Event "Late-Titled-Tuesday-Blitz-September-26-2023"]
[Site "Chess.com"]
[Date "2023.09.26"]
[Round "9"]
[White "GianmarcoVaR"]
[Black "platy3"]
[Result "0-1"]
[WhiteElo "2624"]
[BlackElo "2893"]
[TimeControl "180+1"]
[EndTime "15:40:58 PDT"]
[Termination "platy3 won by checkmate"]

1. Nf3 {[%clk 0:03:00.7]} 1... Nf6 {[%clk 0:02:59.1]} 2. g3 {[%clk 0:03:01.3]}
2... b5 {[%clk 0:02:59.5]} 3. Bg2 {[%clk 0:03:01.4]} 3... Bb7 {[%clk 0:02:59.7]}
4. O-O {[%clk 0:03:02.1]} 4... e6 {[%clk 0:03:00.2]} 5. d3 {[%clk 0:03:01.1]}
5... c5 {[%clk 0:02:59.4]} 6. Nbd2 {[%clk 0:03:01.7]} 6... d5 {[%clk 0:02:57.8]}
7. e4 {[%clk 0:03:00.9]} 7... Be7 {[%clk 0:02:57.7]} 8. Re1 {[%clk 0:03:00.5]}
8... O-O {[%clk 0:02:57.5]} 9. e5 {[%clk 0:02:58.7]} 9... Nfd7 {[%clk
0:02:57.8]} 10. Nf1 {[%clk 0:02:59.4]} 10... Nc6 {[%clk 0:02:57.3]} 11. h4
{[%clk 0:02:59.5]} 11... Qc7 {[%clk 0:02:58]} 12. Bf4 {[%clk 0:02:58.1]} 12...
Rfc8 {[%clk 0:02:57.9]} 13. h5 {[%clk 0:02:58.3]} 13... h6 {[%clk 0:02:57.8]}
14. N1h2 {[%clk 0:02:58.4]} 14... a5 {[%clk 0:02:58.5]} 15. Ng4 {[%clk
0:02:58.8]} 15... Qd8 {[%clk 0:02:59.1]} 16. Qd2 {[%clk 0:02:58.5]} 16... b4
{[%clk 0:02:56.7]} 17. Bxh6 {[%clk 0:01:55.5]} 17... gxh6 {[%clk 0:02:55.9]} 18.
Nxh6+ {[%clk 0:01:55.8]} 18... Kg7 {[%clk 0:02:55.7]} 19. Qf4 {[%clk 0:01:55.9]}
19... Qf8 {[%clk 0:02:55.6]} 20. Ng4 {[%clk 0:01:39.9]} 20... Kh7 {[%clk
0:02:47.4]} 21. h6 {[%clk 0:01:25.9]} 21... Qg8 {[%clk 0:02:41.5]} 22. Bh3
{[%clk 0:01:10.6]} 22... Qg6 {[%clk 0:02:35.5]} 23. c3 {[%clk 0:01:08.4]} 23...
Ba6 {[%clk 0:02:28.9]} 24. Rad1 {[%clk 0:01:08]} 24... Rg8 {[%clk 0:02:22.8]}
25. d4 {[%clk 0:01:06.9]} 25... Raf8 {[%clk 0:02:20.7]} 26. Kh2 {[%clk
0:01:00.6]} 26... Bg5 {[%clk 0:02:11.9]} 27. Nxg5+ {[%clk 0:00:58.3]} 27... Qxg5
{[%clk 0:02:12.8]} 28. Qxg5 {[%clk 0:00:39.7]} 28... Rxg5 {[%clk 0:02:13.7]} 29.
f4 {[%clk 0:00:40.3]} 29... Rg6 {[%clk 0:02:07.3]} 30. Kg2 {[%clk 0:00:36.2]}
30... Rfg8 {[%clk 0:02:02.6]} 31. Kf3 {[%clk 0:00:36.8]} 31... Ne7 {[%clk
0:01:58.7]} 32. Rg1 {[%clk 0:00:32.7]} 32... Nf5 {[%clk 0:01:58.4]} 33. Rg2
{[%clk 0:00:32.4]} 33... a4 {[%clk 0:01:50.1]} 34. Rdg1 {[%clk 0:00:30.9]} 34...
cxd4 {[%clk 0:01:46.9]} 35. cxd4 {[%clk 0:00:27.1]} 35... Nxd4+ {[%clk
0:01:46.5]} 36. Ke3 {[%clk 0:00:26.6]} 36... Nf5+ {[%clk 0:01:43.7]} 37. Kf3
{[%clk 0:00:26.8]} 37... Bd3 {[%clk 0:01:24.8]} 38. Nf2 {[%clk 0:00:25.9]} 38...
Bc4 {[%clk 0:01:02.1]} 39. b3 {[%clk 0:00:09]} 39... axb3 {[%clk 0:01:01.7]} 40.
Bxf5 {[%clk 0:00:09.5]} 40... exf5 {[%clk 0:01:01.4]} 41. axb3 {[%clk
0:00:10.4]} 41... Bxb3 {[%clk 0:01:01]} 42. Nd1 {[%clk 0:00:08]} 42... d4 {[%clk
0:00:58.2]} 43. Rb2 {[%clk 0:00:08.6]} 43... Bxd1+ {[%clk 0:00:56.8]} 44. Kf2
{[%clk 0:00:09.4]} 44... Bh5 {[%clk 0:00:49.1]} 45. Rxb4 {[%clk 0:00:09.4]}
45... Nc5 {[%clk 0:00:49.4]} 46. Rxd4 {[%clk 0:00:09.4]} 46... Ne4+ {[%clk
0:00:49.7]} 47. Ke1 {[%clk 0:00:05.9]} 47... Ra6 {[%clk 0:00:46.2]} 48. Kf1
{[%clk 0:00:02.8]} 48... Kh8 {[%clk 0:00:44.3]} 49. Rg2 {[%clk 0:00:02.2]} 49...
Ra1+ {[%clk 0:00:43.7]} 50. Rd1 {[%clk 0:00:01.8]} 50... Rxd1# {[%clk
0:00:43.9]} 0-1

[Event "Late-Titled-Tuesday-Blitz-September-26-2023"]
[Site "Chess.com"]
[Date "2023.09.26"]
[Round "9"]
[White "Oleksandr_Bortnyk"]
[Black "Njal28"]
[Result "0-1"]
[WhiteElo "3011"]
[BlackElo "3104"]
[TimeControl "180+1"]
[EndTime "15:41:00 PDT"]
[Termination "Njal28 won on time"]

1. d4 {[%clk 0:03:00.9]} 1... Nc6 {[%clk 0:03:00.9]} 2. d5 {[%clk 0:02:52.7]}
2... Ne5 {[%clk 0:03:00.8]} 3. g3 {[%clk 0:02:39.9]} 3... d6 {[%clk 0:02:57.7]}
4. Bg2 {[%clk 0:02:40.5]} 4... Nf6 {[%clk 0:02:57.5]} 5. Nf3 {[%clk 0:02:38.9]}
5... Nxf3+ {[%clk 0:02:57.6]} 6. exf3 {[%clk 0:02:39.8]} 6... e5 {[%clk
0:02:56.7]} 7. O-O {[%clk 0:02:37]} 7... Be7 {[%clk 0:02:56.9]} 8. f4 {[%clk
0:02:37.7]} 8... exf4 {[%clk 0:02:55.2]} 9. Bxf4 {[%clk 0:02:38.6]} 9... O-O
{[%clk 0:02:55.8]} 10. c4 {[%clk 0:02:31.4]} 10... Bg4 {[%clk 0:02:44.7]} 11.
Qd2 {[%clk 0:02:30.2]} 11... Nd7 {[%clk 0:02:25.1]} 12. h3 {[%clk 0:02:26.9]}
12... Bf5 {[%clk 0:02:23.4]} 13. Re1 {[%clk 0:02:27.2]} 13... Nc5 {[%clk
0:02:21]} 14. Be3 {[%clk 0:02:20.2]} 14... Bf6 {[%clk 0:02:17.1]} 15. Nc3 {[%clk
0:02:15.5]} 15... h6 {[%clk 0:02:17.1]} 16. g4 {[%clk 0:02:08.9]} 16... Bh7
{[%clk 0:02:16.8]} 17. f4 {[%clk 0:02:00.2]} 17... Re8 {[%clk 0:02:16.8]} 18. f5
{[%clk 0:01:51.3]} 18... Nd7 {[%clk 0:02:15.9]} 19. Re2 {[%clk 0:01:49]} 19...
Bg5 {[%clk 0:02:10.6]} 20. Rae1 {[%clk 0:01:48.6]} 20... Bxe3+ {[%clk 0:02:10]}
21. Rxe3 {[%clk 0:01:49.5]} 21... Rxe3 {[%clk 0:02:08]} 22. Qxe3 {[%clk
0:01:48.4]} 22... Ne5 {[%clk 0:02:02.4]} 23. b3 {[%clk 0:01:48.3]} 23... Kh8
{[%clk 0:01:59.9]} 24. Ne4 {[%clk 0:01:46.6]} 24... b6 {[%clk 0:01:52.9]} 25. f6
{[%clk 0:01:35.1]} 25... g5 {[%clk 0:01:50.3]} 26. Rf1 {[%clk 0:01:11.2]} 26...
Qf8 {[%clk 0:01:48.6]} 27. Ng3 {[%clk 0:00:52]} 27... Re8 {[%clk 0:01:48]} 28.
Be4 {[%clk 0:00:52.3]} 28... Bxe4 {[%clk 0:01:38.1]} 29. Qxe4 {[%clk 0:00:51.3]}
29... Ng6 {[%clk 0:01:38.8]} 30. Qf3 {[%clk 0:00:38.8]} 30... Re5 {[%clk
0:01:33.9]} 31. Nf5 {[%clk 0:00:38.4]} 31... Kh7 {[%clk 0:01:33.2]} 32. Rf2
{[%clk 0:00:30.3]} 32... Qe8 {[%clk 0:01:32.1]} 33. Kh2 {[%clk 0:00:28.2]} 33...
Qd8 {[%clk 0:01:24.2]} 34. Nd4 {[%clk 0:00:21.5]} 34... Qg8 {[%clk 0:01:15.7]}
35. Re2 {[%clk 0:00:16]} 35... Qe8 {[%clk 0:01:11.6]} 36. Kg1 {[%clk 0:00:09.6]}
36... Nf4 {[%clk 0:01:10.3]} 37. Rxe5 {[%clk 0:00:08.8]} 37... Qxe5 {[%clk
0:01:11.2]} 38. Nb5 {[%clk 0:00:05.2]} 38... Qe1+ {[%clk 0:01:03.5]} 39. Kh2
{[%clk 0:00:04.2]} 39... Ng6 {[%clk 0:00:41.1]} 40. Nxc7 {[%clk 0:00:04]} 40...
Nh4 {[%clk 0:00:39.8]} 41. Qd3+ {[%clk 0:00:03.7]} 41... Kg8 {[%clk 0:00:40.5]}
42. Qg3 {[%clk 0:00:03.2]} 42... Qe2+ {[%clk 0:00:27.9]} 43. Kh1 {[%clk
0:00:03.9]} 43... Qf1+ {[%clk 0:00:27.4]} 44. Kh2 {[%clk 0:00:03.3]} 44... Nf3+
{[%clk 0:00:27.5]} 45. Qxf3 {[%clk 0:00:03.1]} 45... Qxf3 {[%clk 0:00:28.4]} 46.
Nb5 {[%clk 0:00:02.4]} 46... Qxf6 {[%clk 0:00:28.4]} 0-1